bitfinex-derivatives/quotes_BTCF0:USTF0_20250527
["timestamp","ask_amount","ask_price","bid_price","bid_amount"]
[1748336992887,0.6241776,109730.0,109720.0,0.292]
[1748336993180,0.6251776,109730.0,109720.0,0.295]
[1748336993582,0.6251776,109730.0,109720.0,0.5093144]
[1748336993782,0.6251776,109730.0,109720.0,0.5746144]
[1748336994183,0.9859776,109730.0,109720.0,0.5746144]
[1748336994385,0.9859776,109730.0,109720.0,0.3924]
[1748336995590,0.9859776,109730.0,109720.0,0.73865187]
[1748336995793,0.9859776,109730.0,109720.0,0.55643747]
[1748336996589,0.9859776,109730.0,109720.0,0.60374472]
[1748336997289,0.9859776,109730.0,109720.0,0.43970725]
[1748336997687,0.5758976,109730.0,109720.0,0.43970725]
[1748336997990,0.9859776,109730.0,109720.0,0.43970725]
[1748336998188,1.0176776,109730.0,109720.0,0.43970725]
[1748337001577,1.14606453,109730.0,109720.0,0.37440725]
[1748337001778,1.17706453,109730.0,109720.0,0.37440725]
[1748337001993,1.17706453,109730.0,109720.0,0.1471]
[1748337005093,1.0486776,109730.0,109720.0,0.1471]
[1748337009188,1.0486776,109730.0,109720.0,0.4094]
[1748337009389,1.0486776,109730.0,109720.0,0.41379182]
[1748337009998,1.0176776,109730.0,109720.0,0.41379182]
[1748337010500,1.0176776,109730.0,109720.0,0.4094]
[1748337011205,1.0176776,109730.0,109720.0,0.89858693]
[1748337011206,0.2150976,109730.0,109720.0,0.89858693]
[1748337011586,0.2152176,109730.0,109720.0,0.80619182]
[1748337011791,0.6252576,109730.0,109720.0,0.93457875]
[1748337012096,0.1833176,109730.0,109720.0,0.93457875]
[1748337012300,0.5934776,109730.0,109720.0,0.93457875]
[1748337013099,0.6246776,109730.0,109720.0,0.93457875]
[1748337013296,0.6246776,109730.0,109720.0,0.80619182]
[1748337013700,0.2145176,109730.0,109720.0,0.80619182]
[1748337013902,0.6246376,109730.0,109720.0,0.80619182]
[1748337014999,0.6246376,109730.0,109720.0,0.98840592]
[1748337015192,0.6246376,109730.0,109720.0,0.99696708]
[1748337016603,0.2145176,109730.0,109720.0,0.99696708]
[1748337016806,0.6246376,109730.0,109720.0,0.99696708]
[1748337017508,0.2145176,109730.0,109720.0,0.99696708]
[1748337017802,0.1833176,109730.0,109720.0,1.21649001]
[1748337018007,0.1833176,109730.0,109720.0,1.38052579]
[1748337018304,0.00013688,109740.0,109730.0,0.1821975]
[1748337018497,0.2732649,109750.0,109740.0,0.1821809]
[1748337018698,0.28459929,109760.0,109750.0,0.1821643]
[1748337018899,0.28459929,109760.0,109750.0,1.02135123]
[1748337019100,0.2278173,109760.0,109750.0,1.14476323]
[1748337019410,0.2276973,109760.0,109750.0,1.14476323]
[1748337019601,0.2278173,109760.0,109750.0,1.14476323]
[1748337020498,0.2278173,109760.0,109750.0,1.15429335]
[1748337021211,0.2278173,109760.0,109750.0,1.58741335]
[1748337021405,0.2278173,109760.0,109750.0,1.62061335]
[1748337021605,0.2278173,109760.0,109750.0,1.53150135]
[1748337021805,0.2278173,109760.0,109750.0,1.56250135]
[1748337022508,0.00012,109760.0,109750.0,1.56250135]
[1748337022713,0.72896708,109770.0,109760.0,0.1821503]
[1748337022915,0.72896708,109770.0,109760.0,0.72313723]
[1748337023209,0.72896708,109770.0,109760.0,0.5947503]
[1748337023414,0.75906708,109770.0,109760.0,0.5947503]
[1748337023909,0.76006708,109770.0,109760.0,0.60112565]
[1748337024109,0.76106708,109770.0,109760.0,0.60112565]
[1748337028516,0.35098708,109770.0,109760.0,0.96192565]
[1748337028718,0.76102708,109770.0,109760.0,0.96192565]
[1748337030114,0.76102708,109770.0,109760.0,0.77977535]
[1748337030314,0.76102708,109770.0,109760.0,0.41897535]
[1748337030315,1.28051401,109770.0,109760.0,0.41897535]
[1748337030616,1.31171401,109770.0,109760.0,0.24321833]
[1748337031119,1.31171401,109770.0,109760.0,0.18061833]
[1748337032519,1.31171401,109770.0,109760.0,0.17318224]
[1748337034217,1.18332708,109770.0,109760.0,0.17318224]
[1748337035115,1.18332708,109770.0,109760.0,0.17742522]
[1748337035921,1.18332708,109770.0,109760.0,0.18181704]
[1748337036919,1.61684708,109770.0,109760.0,0.17742522]
[1748337038221,1.74523401,109770.0,109760.0,0.17742522]
[1748337039324,1.74523401,109770.0,109760.0,0.17424298]
[1748337039529,1.74523401,109770.0,109760.0,0.13439098]
[1748337039825,0.1821501,109760.0,109750.0,0.00956424]
[1748337040011,0.73473703,109760.0,109750.0,0.08956424]
[1748337040927,0.6063501,109760.0,109750.0,0.08956424]
[1748337041127,0.73473703,109760.0,109750.0,0.08956424]
[1748337041427,0.73473703,109760.0,109750.0,0.08418881]
[1748337041815,0.73473703,109760.0,109750.0,0.08518881]
[1748337042915,0.73473703,109760.0,109730.0,0.34975974]
[1748337042916,0.1821833,109740.0,109730.0,0.34975974]
[1748337043116,0.1821833,109740.0,109730.0,0.67975974]
[1748337043316,0.2467833,109740.0,109730.0,0.67975974]
[1748337044328,0.2477833,109740.0,109730.0,0.68375974]
[1748337044627,0.2477833,109740.0,109730.0,0.63821004]
[1748337044931,0.2487833,109740.0,109730.0,0.59566034]
[1748337045516,0.2487833,109740.0,109730.0,0.58713022]
[1748337046233,0.2487833,109740.0,109730.0,0.78254621]
[1748337046729,0.2487833,109740.0,109730.0,0.79107633]
[1748337047328,0.2487833,109740.0,109730.0,0.79546815]
[1748337047718,0.2487833,109740.0,109730.0,0.63145216]
[1748337048127,0.2487833,109740.0,109730.0,0.62706034]
[1748337048425,0.2487833,109740.0,109730.0,0.67451234]
[1748337048626,0.6587833,109740.0,109730.0,1.03531234]
[1748337049322,0.2487833,109740.0,109730.0,1.03531234]
[1748337049520,0.6587833,109740.0,109730.0,1.03531234]
[1748337051219,0.6587833,109740.0,109730.0,1.03970416]
[1748337052214,0.6587833,109740.0,109730.0,1.03531234]
[1748337053735,0.66798832,109740.0,109730.0,1.03531234]
[1748337055139,0.6587833,109740.0,109730.0,1.03531234]
[1748337055325,0.66784773,109740.0,109730.0,1.03531234]
[1748337055635,0.6587833,109740.0,109730.0,1.03531234]
[1748337056132,0.6587833,109740.0,109730.0,0.67451234]
[1748337057122,1.0195833,109740.0,109730.0,0.59756414]
[1748337058130,1.0185833,109740.0,109730.0,0.59656414]
[1748337058535,1.0175833,109740.0,109730.0,0.59256414]
[1748337058730,1.0175833,109740.0,109730.0,0.59456414]
[1748337058927,1.02691547,109740.0,109730.0,0.59456414]
[1748337060236,1.0175833,109740.0,109730.0,0.59456414]
[1748337060428,1.0175833,109740.0,109730.0,0.62706414]
[1748337061635,1.02678125,109740.0,109730.0,0.62706414]
[1748337062734,1.02682125,109740.0,109730.0,0.62706414]
[1748337063133,0.6075833,109740.0,109730.0,0.62706414]
[1748337063438,1.0176233,109740.0,109730.0,0.62706414]
[1748337063637,0.6568233,109740.0,109730.0,0.98786414]
[1748337063838,0.6568233,109740.0,109730.0,1.15188533]
[1748337064031,0.6568233,109740.0,109730.0,0.79108533]
[1748337065137,0.2467833,109740.0,109730.0,0.79108533]
[1748337065335,0.6251233,109740.0,109730.0,0.79108533]
[1748337065536,0.6251233,109740.0,109730.0,0.79547715]
[1748337066426,0.6568233,109740.0,109730.0,0.79547715]
[1748337066627,0.6568233,109740.0,109730.0,0.79108533]
[1748337067234,0.2150833,109740.0,109730.0,1.28027226]
[1748337067433,0.0329,109740.0,109730.0,1.28027226]
[1748337067733,0.00013688,109750.0,109740.0,0.1821831]
[1748337067937,0.00013688,109750.0,109740.0,1.99809003]
[1748337068131,0.00013688,109750.0,109740.0,2.24809003]
[1748337068641,0.00025688,109750.0,109740.0,2.24809003]
[1748337069134,0.00025688,109750.0,109740.0,1.99909003]
[1748337069334,0.00025688,109750.0,109740.0,2.00009003]
[1748337070640,0.00025688,109750.0,109740.0,2.00209003]
[1748337073039,0.00025688,109750.0,109740.0,2.18509003]
[1748337073746,0.00025688,109750.0,109740.0,2.15359003]
[1748337074443,0.00025688,109750.0,109740.0,2.16431045]
[1748337076845,0.03325688,109750.0,109740.0,2.16431045]
[1748337077445,0.03325688,109750.0,109740.0,1.80351045]
[1748337077746,0.03325688,109750.0,109740.0,2.52511045]
[1748337077938,0.03325688,109750.0,109740.0,2.57256245]
[1748337079540,0.03325688,109750.0,109740.0,2.73658364]
[1748337080746,0.21542348,109750.0,109740.0,2.32013504]
[1748337081041,0.21542348,109750.0,109740.0,2.73009504]
[1748337081435,0.21542348,109750.0,109740.0,2.91460057]
[1748337081635,0.21542348,109750.0,109740.0,2.82348057]
[1748337083945,0.21542348,109750.0,109740.0,2.86908808]
[1748337085352,0.21542348,109750.0,109740.0,2.90036808]
[1748337088252,0.21542348,109750.0,109740.0,2.17876808]
[1748337088447,0.03325688,109750.0,109740.0,2.90036808]
[1748337088848,0.03325688,109750.0,109740.0,2.49040808]
[1748337090251,0.03325688,109750.0,109740.0,1.76880808]
[1748337090453,0.03325688,109750.0,109740.0,2.49040808]
[1748337094563,0.06575688,109750.0,109740.0,2.49040808]
[1748337097466,0.06575688,109750.0,109740.0,2.85787598]
[1748337097767,0.3490831,109760.0,109750.0,0.1821665]
[1748337098063,0.3490831,109760.0,109750.0,1.07355343]
[1748337098266,0.2580024,109760.0,109750.0,1.07355343]
[1748337098456,0.2580024,109760.0,109750.0,1.23757462]
[1748337098866,0.2581224,109760.0,109750.0,1.23857462]
[1748337099063,0.2581224,109760.0,109750.0,1.23957462]
[1748337099675,0.2581224,109760.0,109750.0,1.25458579]
[1748337101071,0.2581224,109760.0,109750.0,1.35883295]
[1748337101273,0.2890224,109760.0,109750.0,1.35883295]
[1748337101772,0.3216224,109760.0,109750.0,1.19481176]
[1748337101973,0.3216224,109760.0,109750.0,1.20552264]
[1748337103071,0.3216224,109760.0,109750.0,1.07713571]
[1748337103275,0.3216224,109760.0,109750.0,1.20552264]
[1748337103776,0.3216224,109760.0,109750.0,1.14872748]
[1748337105078,0.3216224,109760.0,109750.0,0.78792748]
[1748337105378,0.3216224,109760.0,109750.0,1.14872748]
[1748337106077,0.3216224,109760.0,109750.0,1.135826]
[1748337106474,0.3216224,109760.0,109750.0,0.775026]
[1748337106677,0.3216224,109760.0,109750.0,1.135826]
[1748337109082,0.3216224,109760.0,109750.0,1.173426]
[1748337109674,0.3216224,109760.0,109750.0,1.33744719]
[1748337110382,0.3216224,109760.0,109750.0,1.34183901]
[1748337111480,0.3216224,109760.0,109750.0,0.98103901]
[1748337111684,0.3216224,109760.0,109750.0,1.34183901]
[1748337111883,0.3216224,109760.0,109750.0,1.70930691]
[1748337112483,0.3216224,109760.0,109750.0,1.69429574]
[1748337112781,0.3216224,109760.0,109750.0,1.7510909]
[1748337114188,0.3216224,109760.0,109750.0,1.383623]
[1748337114672,0.3216224,109760.0,109750.0,1.38793166]
[1748337115279,0.3216224,109760.0,109750.0,1.20576516]
[1748337115582,0.3216224,109760.0,109750.0,1.38793166]
[1748337115883,0.3216224,109760.0,109750.0,1.27244621]
[1748337116080,0.3216224,109760.0,109750.0,1.38793166]
[1748337120184,0.3216224,109760.0,109750.0,1.35973166]
[1748337120486,0.3216224,109760.0,109750.0,1.35033166]
[1748337122378,0.3216224,109760.0,109750.0,1.71881109]
[1748337125287,0.3216224,109760.0,109750.0,1.75641109]
[1748337126194,0.3216224,109760.0,109750.0,1.64092564]
[1748337126390,0.3216224,109760.0,109750.0,1.75641109]
[1748337126691,0.3216224,109760.0,109750.0,1.6259061]
[1748337126891,0.3216224,109760.0,109750.0,1.74139155]
[1748337128090,0.3216224,109760.0,109750.0,1.77169155]
[1748337129192,0.3215024,109760.0,109750.0,1.77169155]
[1748337129595,0.3215024,109760.0,109750.0,1.41823385]
[1748337131384,0.3215024,109760.0,109750.0,1.3027484]
[1748337131690,0.3215024,109760.0,109750.0,1.41823385]
[1748337133395,0.3215024,109760.0,109750.0,0.6978819]
[1748337133692,0.6823024,109760.0,109750.0,0.6672819]
[1748337134491,0.79778785,109760.0,109750.0,0.6672819]
[1748337134992,0.79878785,109760.0,109750.0,0.6662819]
[1748337135685,0.79978785,109760.0,109750.0,0.67384164]
[1748337136294,0.79978785,109760.0,109750.0,0.61704648]
[1748337136593,1.5088624,109760.0,109750.0,0.79921298]
[1748337136797,1.1480624,109760.0,109750.0,0.79921298]
[1748337136989,1.1480624,109760.0,109750.0,0.63519179]
[1748337137499,1.5088624,109760.0,109750.0,0.63519179]
[1748337137790,1.5088624,109760.0,109750.0,0.75067724]
[1748337137994,0.7334624,109760.0,109750.0,0.81357724]
[1748337138196,0.7335824,109760.0,109750.0,1.20477724]
[1748337138382,0.7335824,109760.0,109750.0,1.00796561]
[1748337138587,0.7335824,109760.0,109750.0,1.36020587]
[1748337139196,0.3236224,109760.0,109750.0,1.36020587]
[1748337139394,0.7335824,109760.0,109750.0,1.36020587]
[1748337139600,0.2910224,109760.0,109750.0,1.36020587]
[1748337139799,0.7009824,109760.0,109750.0,1.36020587]
[1748337139993,0.7009824,109760.0,109750.0,1.1962175]
[1748337140494,0.7009824,109760.0,109750.0,1.08073205]
[1748337140702,0.7009824,109760.0,109750.0,1.1962175]
[1748337141599,0.7009824,109760.0,109750.0,1.15214815]
[1748337142099,0.2910224,109760.0,109750.0,1.15214815]
[1748337142297,0.7009824,109760.0,109750.0,1.10469615]
[1748337146294,0.2607224,109760.0,109750.0,1.10469615]
[1748337146491,0.2607224,109760.0,109750.0,1.14229615]
[1748337146695,0.2606024,109760.0,109750.0,1.14229615]
[1748337147193,0.2607224,109760.0,109750.0,1.14229615]
[1748337148403,0.2607224,109760.0,109750.0,1.0268107]
[1748337148596,0.2607224,109760.0,109750.0,1.14229615]
[1748337148796,0.03302,109760.0,109750.0,1.14229615]
[1748337148996,0.2151698,109760.0,109750.0,1.14229615]
[1748337149291,0.2150498,109760.0,109750.0,1.14229615]
[1748337149497,0.03302,109760.0,109750.0,1.14229615]
[1748337149893,0.03202,109760.0,109750.0,1.14229615]
[1748337150095,0.03202,109760.0,109750.0,1.14329615]
[1748337150508,0.03102,109760.0,109750.0,1.14329615]
[1748337150802,0.21317,109760.0,109750.0,1.14429615]
[1748337151003,0.21317,109760.0,109750.0,1.30828452]
[1748337151204,0.21317,109760.0,109750.0,1.29973214]
[1748337151901,0.21317,109760.0,109750.0,1.26213214]
[1748337152105,0.03102,109760.0,109750.0,1.26213214]
[1748337152306,0.2131699,109760.0,109750.0,1.26213214]
[1748337152706,0.2131699,109760.0,109750.0,1.27285315]
[1748337153303,0.2131699,109760.0,109750.0,1.1573677]
[1748337153508,0.2131699,109760.0,109750.0,1.27285315]
[1748337153910,0.2131699,109760.0,109750.0,1.37733561]
[1748337157009,0.2131699,109760.0,109750.0,1.41493561]
[1748337159313,0.2444699,109760.0,109750.0,1.41493561]
[1748337159902,0.35995535,109760.0,109750.0,1.29945016]
[1748337160099,0.2750699,109760.0,109750.0,1.26905016]
[1748337160303,0.2750699,109760.0,109750.0,1.26465834]
[1748337160711,0.2750699,109760.0,109750.0,1.38014379]
[1748337161515,0.2750699,109760.0,109750.0,1.32353564]
[1748337163416,0.2760699,109760.0,109750.0,1.32253564]
[1748337163917,0.2760699,109760.0,109750.0,1.20705019]
[1748337164515,0.2760699,109760.0,109750.0,1.20605019]
[1748337164715,0.2770699,109760.0,109750.0,1.20605019]
[1748337164907,0.2770699,109760.0,109750.0,1.32153564]
[1748337165818,0.2770699,109760.0,109750.0,1.20605019]
[1748337168311,0.2770699,109760.0,109750.0,0.81255019]
[1748337168513,0.2770699,109760.0,109750.0,0.60018369]
[1748337168514,0.39255535,109760.0,109750.0,0.60018369]
[1748337168703,0.75335535,109760.0,109750.0,0.78235019]
[1748337169015,1.16331535,109760.0,109750.0,0.78235029]
[1748337169410,1.16331535,109760.0,109750.0,0.60457551]
[1748337171319,1.0478299,109760.0,109750.0,0.78674201]
[1748337171618,0.2770699,109760.0,109750.0,1.26302746]
[1748337171808,0.6869499,109760.0,109750.0,1.35462746]
[1748337172008,0.2770699,109760.0,109750.0,1.35462746]
[1748337172210,0.6870699,109760.0,109750.0,1.35462746]
[1748337173217,0.2770699,109760.0,109750.0,1.31702746]
[1748337173418,0.2464699,109760.0,109750.0,1.31702746]
[1748337173619,0.6251699,109760.0,109750.0,1.31702746]
[1748337173917,0.6250499,109760.0,109750.0,1.19063909]
[1748337174119,0.6251699,109760.0,109750.0,1.19063909]
[1748337174319,0.6251699,109760.0,109750.0,1.19920662]
[1748337176222,0.6251699,109760.0,109750.0,1.15133231]
[1748337177919,0.6251699,109760.0,109750.0,1.1406113]
[1748337178926,0.2151699,109760.0,109750.0,1.1406113]
[1748337179120,0.6251699,109760.0,109750.0,1.1406113]
[1748337180227,0.6251699,109760.0,109750.0,1.1030113]
[1748337180427,0.2151699,109760.0,109750.0,1.1030113]
[1748337180622,0.6251699,109760.0,109750.0,1.1030113]
[1748337181229,0.2151699,109760.0,109750.0,1.1030113]
[1748337181428,0.6251699,109760.0,109750.0,1.1030113]
[1748337183016,0.2151699,109760.0,109750.0,1.30458692]
[1748337183328,0.2150499,109760.0,109750.0,1.18910147]
[1748337183630,0.2151699,109760.0,109750.0,1.29601939]
[1748337183929,0.2151699,109760.0,109750.0,1.18053394]
[1748337184129,0.2151699,109760.0,109750.0,1.29601939]
[1748337184324,0.2141699,109760.0,109750.0,1.29701939]
[1748337184930,0.2131699,109760.0,109750.0,1.29701939]
[1748337185229,0.2131699,109760.0,109750.0,1.41762418]
[1748337186330,0.2131699,109760.0,109750.0,1.25364856]
[1748337188031,0.2131699,109760.0,109750.0,1.1490655]
[1748337191833,0.2131699,109760.0,109750.0,1.14467368]
[1748337194936,0.2131699,109760.0,109750.0,1.153228]
[1748337196137,0.2131699,109760.0,109750.0,1.14467368]
[1748337197435,0.2131699,109760.0,109750.0,1.10707368]
[1748337197932,0.2131699,109760.0,109750.0,1.09205195]
[1748337199538,0.2131699,109760.0,109750.0,1.10276123]
[1748337201844,0.2131699,109760.0,109750.0,1.15066154]
[1748337202340,0.2131699,109760.0,109750.0,1.18826154]
[1748337203242,0.2450699,109760.0,109750.0,1.35223496]
[1748337206247,0.2762699,109760.0,109750.0,1.35223496]
[1748337207334,0.2762699,109760.0,109750.0,1.19914951]
[1748337207549,0.2762699,109760.0,109750.0,1.31463496]
[1748337208050,0.2762699,109760.0,109750.0,1.28463496]
[1748337208243,0.2762699,109760.0,109750.0,1.25443496]
[1748337210148,0.2762699,109760.0,109750.0,1.28473496]
[1748337212251,0.2762699,109760.0,109750.0,1.32233496]
[1748337212653,0.2762699,109760.0,109750.0,1.31162568]
[1748337214149,0.2761499,109760.0,109750.0,1.31162568]
[1748337214343,0.2761499,109760.0,109750.0,1.34182568]
[1748337218746,0.2761499,109760.0,109750.0,1.31362568]
[1748337219051,0.2761499,109760.0,109750.0,1.48827833]
[1748337221254,0.2761499,109760.0,109750.0,1.4317544]
[1748337223851,0.2761499,109760.0,109750.0,1.48437613]
[1748337225756,0.2761499,109760.0,109750.0,1.36889068]
[1748337226052,0.2761499,109760.0,109750.0,1.48437613]
[1748337227657,0.2761499,109760.0,109750.0,1.36889068]
[1748337227959,0.2761499,109760.0,109750.0,1.48437613]
[1748337235971,0.2761499,109760.0,109750.0,1.12357613]
[1748337236172,0.2761499,109760.0,109750.0,1.48437613]
[1748337236467,0.2761499,109760.0,109750.0,1.12357613]
[1748337236672,0.2761499,109760.0,109750.0,1.48437613]
[1748337239371,0.2761499,109760.0,109750.0,1.44677613]
[1748337240274,0.2761499,109760.0,109750.0,1.33129068]
[1748337240465,0.2761499,109760.0,109750.0,1.44677613]
[1748337242376,0.39163535,109760.0,109750.0,0.91120963]
[1748337242874,0.39163535,109760.0,109750.0,1.09337733]
[1748337243071,0.2761499,109760.0,109750.0,1.09337733]
[1748337243476,0.2761499,109760.0,109750.0,0.97789188]
[1748337243665,0.2761499,109760.0,109750.0,1.09337733]
[1748337243976,0.2761499,109760.0,109750.0,0.92940391]
[1748337244179,0.39163535,109760.0,109750.0,0.65790256]
[1748337244377,0.39163535,109760.0,109750.0,0.66861384]
[1748337245575,0.39163535,109760.0,109750.0,0.67717581]
[1748337245778,0.39163535,109760.0,109750.0,0.66215408]
[1748337246576,0.39163535,109760.0,109750.0,0.73996967]
[1748337246777,0.2761499,109760.0,109750.0,0.76996967]
[1748337247178,0.2761499,109760.0,109750.0,0.58780197]
[1748337247367,0.2761499,109760.0,109750.0,0.55780197]
[1748337247874,0.75243535,109760.0,109750.0,0.52640197]
[1748337249163,0.75343535,109760.0,109750.0,0.52540197]
[1748337249575,0.75343535,109760.0,109750.0,0.39787325]
[1748337249975,0.75343535,109760.0,109750.0,0.39687325]
[1748337249976,0.75443535,109760.0,109750.0,0.39687325]
[1748337250676,0.75443535,109760.0,109750.0,0.3776]
[1748337252973,0.75443535,109760.0,109750.0,0.42768882]
[1748337255481,0.75443535,109760.0,109750.0,0.3776]
[1748337256783,0.75443535,109760.0,109750.0,0.38400453]
[1748337256982,0.75443535,109760.0,109750.0,0.41730453]
[1748337259980,0.75443535,109760.0,109750.0,0.38400453]
[1748337260180,0.6389499,109760.0,109750.0,0.38400453]
[1748337260380,0.75443535,109760.0,109750.0,0.38400453]
[1748337260885,0.75443535,109760.0,109750.0,0.3776]
[1748337263588,0.75443535,109760.0,109750.0,0.38401227]
[1748337263784,0.6389499,109760.0,109750.0,0.38401227]
[1748337263987,0.75443535,109760.0,109750.0,0.38401227]
[1748337264189,0.75443535,109760.0,109750.0,0.41721227]
[1748337264890,0.75443535,109760.0,109750.0,0.4108]
[1748337265291,1.16683535,109760.0,109750.0,0.4108]
[1748337265995,1.16683535,109760.0,109750.0,0.4421]
[1748337266593,1.16683535,109760.0,109750.0,0.4108]
[1748337268291,1.16683535,109760.0,109750.0,0.4421]
[1748337268894,1.16683535,109760.0,109750.0,0.44851529]
[1748337269294,1.16683535,109760.0,109750.0,0.49859391]
[1748337269895,1.16683535,109760.0,109750.0,0.46729391]
[1748337270497,1.16683535,109760.0,109750.0,0.50039391]
[1748337272193,1.57683535,109760.0,109750.0,0.50039391]
[1748337272400,1.4613499,109760.0,109750.0,0.50039391]
[1748337272597,1.0513499,109760.0,109750.0,0.45031529]
[1748337272796,1.4613499,109760.0,109750.0,0.45031529]
[1748337272998,1.57683535,109760.0,109750.0,0.48031529]
[1748337274504,1.57683535,109760.0,109750.0,0.4739]
[1748337277305,1.57683535,109760.0,109750.0,0.4363]
[1748337278404,1.57683535,109760.0,109750.0,0.4063]
[1748337278909,1.4613499,109760.0,109750.0,0.4063]
[1748337279097,1.57683535,109760.0,109750.0,0.4063]
[1748337279899,1.4613499,109760.0,109750.0,0.4439]
[1748337280100,1.57683535,109760.0,109750.0,0.4439]
[1748337280707,1.57683535,109760.0,109750.0,0.2839]
[1748337281501,1.57683535,109760.0,109750.0,0.29031755]
[1748337282308,1.57683535,109760.0,109750.0,0.25721755]
[1748337283112,1.57611535,109760.0,109750.0,0.25721755]
[1748337283408,1.57611535,109760.0,109750.0,0.28761755]
[1748337284207,1.57611535,109760.0,109750.0,0.2812]
[1748337285307,1.4606299,109760.0,109750.0,0.2812]
[1748337285507,1.57611535,109760.0,109750.0,0.2812]
[1748337287709,1.57611535,109760.0,109750.0,0.253]
[1748337288012,1.57611535,109760.0,109750.0,0.2436]
[1748337288211,1.57611535,109760.0,109750.0,0.29370735]
[1748337289717,1.57611535,109760.0,109750.0,0.45771596]
[1748337290808,1.57611535,109760.0,109750.0,0.46627793]
[1748337291009,1.57611535,109760.0,109750.0,0.49877793]
[1748337292910,1.57611535,109760.0,109750.0,0.53637793]
[1748337299022,1.4606299,109760.0,109750.0,0.53637793]
[1748337299320,1.57611535,109760.0,109750.0,0.53637793]
[1748337300622,1.16607535,109760.0,109750.0,0.53637793]
[1748337300822,0.9874899,109760.0,109750.0,0.67002247]
[1748337301028,1.3975299,109760.0,109750.0,0.67002247]
[1748337301334,1.3976499,109760.0,109750.0,0.67002247]
[1748337301720,1.51313535,109760.0,109750.0,0.67002247]
[1748337302727,1.51313535,109760.0,109750.0,0.55453702]
[1748337303227,1.54373535,109760.0,109750.0,0.55453702]
[1748337305031,1.54373535,109760.0,109750.0,0.51693702]
[1748337305534,1.54373535,109760.0,109750.0,0.63242247]
[1748337307033,1.54373535,109760.0,109750.0,0.63242237]
[1748337307233,1.4282499,109760.0,109750.0,0.63242237]
[1748337307532,1.54373535,109760.0,109750.0,0.63242237]
[1748337308432,1.18293535,109760.0,109750.0,0.6238604]
[1748337308826,1.0674499,109760.0,109750.0,0.6238604]
[1748337309027,1.18293535,109760.0,109750.0,0.6238604]
[1748337309826,1.18293535,109760.0,109750.0,0.57375305]
[1748337310022,1.18293535,109760.0,109750.0,0.62430684]
[1748337310534,1.18293535,109760.0,109750.0,0.44213924]
[1748337311032,1.18293535,109760.0,109750.0,0.43774742]
[1748337311235,1.54373535,109760.0,109750.0,0.43774742]
[1748337311427,0.72205535,109760.0,109750.0,0.28976197]
[1748337311631,1.57449535,109760.0,109750.0,0.28976197]
[1748337312836,1.57449535,109760.0,109750.0,0.2812]
[1748337315235,1.57449535,109760.0,109750.0,0.2508]
[1748337317035,1.57449535,109760.0,109750.0,0.30086045]
[1748337319437,1.57449535,109760.0,109750.0,0.2508]
[1748337321540,1.57449535,109760.0,109750.0,0.22616197]
[1748337321729,1.57449535,109760.0,109750.0,7e-08]
[1748337321935,0.1821677,109750.0,109740.0,7e-08]
[1748337322131,0.8710386,109750.0,109740.0,7e-08]
[1748337322336,0.8710386,109750.0,109730.0,0.13824]
[1748337322337,0.4131551,109740.0,109730.0,0.13824]
[1748337322641,1.6592951,109740.0,109730.0,0.17395502]
[1748337323536,1.4283242,109740.0,109730.0,0.17395502]
[1748337323745,1.6592951,109740.0,109730.0,0.17395502]
[1748337324241,1.6592951,109740.0,109730.0,0.17073107]
[1748337324743,1.67053406,109740.0,109730.0,0.17073107]
[1748337324943,1.70303406,109740.0,109730.0,0.17073107]
[1748337325742,1.70403406,109740.0,109730.0,0.17073107]
[1748337326039,1.70403406,109740.0,109730.0,0.04320235]
[1748337326241,1.70403406,109740.0,109730.0,0.04]
[1748337328047,1.47306316,109740.0,109730.0,0.04]
[1748337328233,1.70403406,109740.0,109730.0,0.04]
[1748337328434,1.58854861,109740.0,109730.0,0.04]
[1748337330042,1.70403406,109740.0,109730.0,0.04]
[1748337330344,1.47306316,109740.0,109730.0,0.04]
[1748337330544,1.70403406,109740.0,109730.0,0.04]
[1748337335543,2.06483406,109740.0,109730.0,0.04]
[1748337342744,2.06483406,109740.0,109720.0,0.04037452]
[1748337342745,0.1822008,109730.0,109720.0,0.04037452]
[1748337342941,0.75508625,109730.0,109720.0,0.10037452]
[1748337343552,0.75508625,109730.0,109720.0,0.13107452]
[1748337343749,0.75508625,109730.0,109720.0,0.12680235]
[1748337343948,0.75708625,109730.0,109720.0,0.12780235]
[1748337344849,0.75908625,109730.0,109720.0,0.13319417]
[1748337345647,0.75908625,109730.0,109720.0,0.12880235]
[1748337345847,0.75908625,109730.0,109720.0,0.13307452]
[1748337346047,1.57996625,109730.0,109720.0,0.13307452]
[1748337348257,1.4644808,109730.0,109720.0,0.35307452]
[1748337348447,1.57996625,109730.0,109720.0,0.35307452]
[1748337349854,1.57996625,109730.0,109720.0,0.35746634]
[1748337350756,1.57996625,109730.0,109720.0,0.36069029]
[1748337351759,1.57996625,109730.0,109720.0,0.35629847]
[1748337352056,1.57996625,109730.0,109720.0,0.3520263]
[1748337352755,1.57996625,109730.0,109720.0,0.35641812]
[1748337360060,1.57996625,109730.0,109720.0,0.13571812]
[1748337360463,1.57996625,109730.0,109720.0,0.16701812]
[1748337360952,1.57996625,109730.0,109720.0,0.1626263]
[1748337361158,1.57996625,109730.0,109720.0,0.16690673]
[1748337361353,1.57996625,109730.0,109720.0,0.13560673]
[1748337361756,1.57996625,109730.0,109720.0,0.16690673]
[1748337364556,1.57996625,109730.0,109720.0,0.10270673]
[1748337364864,1.63686824,109730.0,109720.0,0.09628043]
[1748337365963,1.63686824,109730.0,109720.0,0.10067225]
[1748337366162,1.63686824,109730.0,109720.0,0.09959982]
[1748337369365,1.63686824,109730.0,109720.0,2e-08]
[1748337369871,1.52138279,109730.0,109720.0,2e-08]
[1748337370054,1.63686824,109730.0,109720.0,0.03439184]
[1748337371869,1.63686824,109730.0,109720.0,4e-08]
[1748337372065,1.63686824,109730.0,109720.0,0.00439186]
[1748337374066,1.66503439,109730.0,109720.0,0.00439186]
[1748337374273,1.54954894,109730.0,109720.0,0.00439186]
[1748337374572,1.66503439,109730.0,109720.0,0.00439186]
[1748337376683,1.72192028,109730.0,109720.0,0.00439186]
[1748337376973,1.72192028,109730.0,109700.0,0.03533444]
[1748337376974,0.182234,109710.0,109700.0,0.03533444]
[1748337377178,1.9550849,109710.0,109700.0,0.0997263]
[1748337377477,1.93459945,109710.0,109700.0,0.0997263]
[1748337377863,1.93459945,109710.0,109700.0,0.0933]
[1748337378065,2.0500849,109710.0,109700.0,0.0933]
[1748337378269,0.1822506,109700.0,109690.0,0.0064263]
[1748337378470,0.75303605,109700.0,109690.0,0.1370263]
[1748337379280,0.75403605,109700.0,109690.0,0.1390263]
[1748337379479,0.76761775,109700.0,109690.0,0.1346]
[1748337379978,0.76761775,109700.0,109690.0,0.1051037]
[1748337380180,0.76761775,109700.0,109690.0,0.0802556]
[1748337380586,0.76761775,109700.0,109690.0,0.0567057]
[1748337380885,0.76761775,109700.0,109690.0,0.004]
[1748337382686,0.182267,109690.0,109680.0,0.0622]
[1748337382881,1.57241245,109690.0,109680.0,0.1022]
[1748337383381,1.57241245,109690.0,109680.0,0.1332]
[1748337383586,1.456927,109690.0,109680.0,0.1332]